bitfinex/quotes_SOLUSD_20240605
["timestamp","ask_amount","ask_price","bid_price","bid_amount"]
[1717611979700,8.4962,173.69,173.64,2.1307]
[1717611980196,6.366,173.69,173.65,2.1306]
[1717611983769,6.366,173.69,173.66,2.1305]
[1717611985994,6.366,173.69,173.65,2.1306]
[1717611986377,6.366,173.69,173.66,2.1305]
[1717611986977,6.6273,173.67,173.63,2.1308]
[1717611987297,0.34,173.66,173.63,2.1308]
[1717611987981,0.34,173.66,173.64,2.1308]
[1717611988573,0.17,173.66,173.64,2.1308]
[1717611988897,6.6273,173.67,173.65,2.1306]
[1717611989212,6.6273,173.67,173.64,2.1307]
[1717611989684,0.17,173.66,173.64,2.1307]
[1717611989889,6.6273,173.67,173.65,2.1306]
[1717611990277,23.5586,173.7,173.65,2.1306]
[1717611990499,0.17,173.69,173.66,2.1305]
[1717611991493,0.17,173.69,173.62,21.49]
[1717611991803,2.1298,173.73,173.67,2.1303]
[1717611992110,6.5587,173.71,173.67,2.1304]
[1717611992293,0.34,173.7,173.67,2.1304]
[1717611993905,0.34,173.7,173.67,9.2904]
[1717611995494,0.34,173.7,173.67,7.16]
[1717611996506,0.34,173.7,173.68,7.16]
[1717611998504,0.17,173.7,173.68,7.16]
[1717611998700,0.34,173.71,173.68,7.16]
[1717611998908,0.34,173.71,173.69,7.16]
[1717611999296,2.1294,173.76,173.71,2.1299]
[1717611999593,2.1294,173.76,173.73,7.16]
[1717612000212,4.2584,173.78,173.73,7.16]
[1717612000388,8.6055,173.79,173.75,7.16]
[1717612000593,8.6055,173.79,173.76,7.16]
[1717612001688,0.34,173.78,173.76,7.16]
[1717612002405,8.6055,173.79,173.76,7.16]
[1717612002985,2.1289,173.8,173.76,7.16]
[1717612003190,8.3652,173.83,173.78,7.16]
[1717612003408,2.1286,173.82,173.78,7.16]
[1717612003698,2.1287,173.81,173.78,7.16]
[1717612004411,2.1286,173.82,173.78,7.16]
[1717612007114,8.7052,173.83,173.78,7.16]
[1717612007313,0.34,173.82,173.78,7.16]
[1717612008613,2.4686,173.82,173.78,7.16]
[1717612008804,8.9365,173.82,173.78,7.16]
[1717612010732,8.9365,173.82,173.77,7.16]
[1717612014721,8.9365,173.82,173.78,7.16]
[1717612015317,6.8079,173.82,173.71,5.747]
[1717612015628,8.9365,173.82,173.72,65.0]
[1717612015808,6.8079,173.82,173.78,7.16]
[1717612016001,8.9365,173.82,173.78,7.16]
[1717612016196,0.34,173.82,173.78,7.16]
[1717612016401,0.34,173.82,173.72,65.0]
[1717612016630,0.34,173.82,173.78,7.16]
[1717612017424,6.6415,173.86,173.8,7.16]
[1717612017732,2.1283,173.85,173.81,7.16]
[1717612018608,0.34,173.84,173.81,7.16]
[1717612018810,0.34,173.84,173.8,7.16]
[1717612019829,0.34,173.84,173.79,7.16]
[1717612020723,0.34,173.84,173.73,6.5377]
[1717612020923,0.34,173.84,173.79,7.16]
[1717612021133,0.34,173.84,173.8,7.16]
[1717612022534,0.34,173.84,173.73,6.5377]
[1717612022714,0.34,173.84,173.74,65.0]
[1717612023214,2.4684,173.84,173.74,65.0]
[1717612023414,2.4684,173.84,173.8,7.16]
[1717612023619,13.6038,173.83,173.74,65.0]
[1717612023813,0.34,173.82,173.74,20.0]
[1717612024144,0.34,173.82,173.76,7.16]
[1717612024428,13.6038,173.83,173.71,20.0]
[1717612024429,2.1282,173.86,173.8,7.16]
[1717612024622,0.17,173.85,173.81,7.16]
[1717612024825,2.2981,173.86,173.82,7.16]
[1717612025030,0.17,173.86,173.82,7.16]
[1717612025334,2.2981,173.86,173.82,7.16]
[1717612025507,8.4185,173.86,173.71,20.0]
[1717612025705,2.1283,173.85,173.72,45.34]
[1717612025910,2.1283,173.85,173.8,7.16]
[1717612026226,8.2983,173.85,173.72,45.34]
[1717612026429,8.2984,173.84,173.73,20.0]
[1717612026615,8.2984,173.84,173.74,45.0]
[1717612026937,8.2984,173.84,173.78,7.16]
[1717612027637,6.17,173.84,173.78,7.16]
[1717612028910,6.17,173.84,173.79,7.16]
[1717612030017,0.34,173.86,173.81,7.16]
[1717612030227,0.17,173.85,173.81,7.16]
[1717612030608,2.1279,173.88,173.83,7.16]
[1717612030811,15.2257,173.9,173.84,7.16]
[1717612031011,8.566,173.89,173.84,7.16]
[1717612031240,8.5661,173.88,173.84,7.16]
[1717612031419,2.128,173.87,173.84,7.16]
[1717612032425,2.1281,173.86,173.75,26.3724]
[1717612032632,2.1281,173.86,173.81,7.16]
[1717612032938,2.1281,173.86,173.75,26.3724]
[1717612032939,8.3522,173.85,173.8,7.16]
[1717612033144,8.1822,173.85,173.8,7.16]
[1717612033431,0.17,173.84,173.8,7.16]
[1717612034343,2.298,173.87,173.82,7.16]
[1717612034541,0.17,173.86,173.82,7.16]
[1717612035442,0.34,173.87,173.82,7.16]
[1717612035820,0.17,173.86,173.82,7.16]
[1717612037948,2.2981,173.86,173.82,7.16]
[1717612040126,0.17,173.86,173.82,7.16]
[1717612040947,2.2981,173.86,173.82,7.16]
[1717612041449,2.1281,173.86,173.82,7.16]
[1717612041645,2.128,173.87,173.82,7.16]
[1717612042743,2.1281,173.86,173.82,7.16]
[1717612043854,2.1281,173.86,173.81,7.16]
[1717612044038,2.2982,173.85,173.79,7.16]
[1717612046057,0.17,173.85,173.79,7.16]
[1717612047432,0.17,173.85,173.8,7.16]
[1717612048350,0.34,173.86,173.8,7.16]
[1717612048559,2.4681,173.86,173.81,7.16]
[1717612048753,9.0311,173.86,173.81,7.16]
[1717612049562,9.0311,173.86,173.8,7.16]
[1717612050157,8.6911,173.86,173.81,7.16]
[1717612050852,6.563,173.86,173.81,7.16]
[1717612052864,8.6911,173.86,173.75,26.3724]
[1717612053143,8.6911,173.86,173.8,7.16]
[1717612058280,8.6911,173.86,173.79,7.16]
[1717612061777,6.563,173.86,173.76,45.0]
[1717612062077,6.563,173.86,173.8,7.16]
[1717612062978,8.6911,173.86,173.8,7.16]
[1717612063173,6.563,173.86,173.8,7.16]
[1717612063963,8.6911,173.86,173.8,7.16]
[1717612064168,6.563,173.86,173.8,7.16]
[1717612064582,8.6911,173.86,173.8,7.16]
[1717612067162,7.5,173.87,173.8,7.16]
[1717612067163,8.3157,173.85,173.8,7.16]
[1717612067564,6.1875,173.85,173.76,45.0]
[1717612067769,6.1875,173.85,173.8,7.16]
[1717612069192,2.468,173.87,173.8,7.16]
[1717612069390,9.628,173.87,173.8,7.16]
[1717612070394,2.1281,173.86,173.77,20.0]
[1717612070686,7.5,173.87,173.8,7.16]
[1717612070687,2.1282,173.85,173.8,7.16]
[1717612070880,8.1916,173.85,173.8,7.16]
[1717612071270,8.1916,173.85,173.79,7.16]
[1717612071483,8.1916,173.85,173.78,45.0]
[1717612071692,8.1916,173.85,173.79,7.16]
[1717612072498,6.0634,173.85,173.79,7.16]
[1717612073302,13.1942,173.83,173.71,6.525]
[1717612073492,7.16,173.82,173.72,20.0]
[1717612073694,7.16,173.82,173.75,7.16]
[1717612073894,6.0342,173.83,173.71,6.525]
[1717612074088,6.1349,173.8,173.76,7.16]
[1717612074287,6.1349,173.8,173.75,7.16]
[1717612076294,6.1349,173.8,173.7,34.39]
[1717612076477,6.1349,173.8,173.74,7.16]
[1717612076805,6.1349,173.8,173.71,45.0]
[1717612077096,6.1349,173.8,173.74,7.16]
[1717612085112,6.1349,173.8,173.76,7.16]
[1717612085287,6.1349,173.8,173.71,50.75]
[1717612085483,6.1349,173.8,173.72,20.0]
[1717612085790,13.2949,173.8,173.73,45.0]
[1717612085989,13.2949,173.8,173.74,7.16]
[1717612086187,15.4238,173.8,173.67,12.3594]
[1717612086389,6.7666,173.79,173.74,7.16]
[1717612086621,6.7666,173.79,173.73,7.16]
[1717612088101,13.9266,173.79,173.67,12.3594]
[1717612088282,0.17,173.78,173.68,45.0]
[1717612088485,0.17,173.78,173.68,65.0]
[1717612088713,7.16,173.77,173.68,20.0]
[1717612088899,0.17,173.76,173.68,20.0]
[1717612089098,0.34,173.76,173.7,7.16]
[1717612089410,9.6293,173.76,173.69,7.16]
[1717612089703,6.375,173.74,173.71,2.1298]
[1717612090101,6.4847,173.74,173.64,5.75]
[1717612090305,0.17,173.73,173.71,2.1299]
[1717612091200,0.17,173.73,173.7,2.13]
[1717612091800,16.2979,173.74,173.7,2.13]
[1717612091996,6.5408,173.73,173.7,2.13]
[1717612092210,0.17,173.72,173.64,20.0]
[1717612092508,0.17,173.72,173.68,2.1303]
[1717612092509,6.5408,173.71,173.68,2.1303]
[1717612093109,6.5408,173.71,173.69,2.1302]
[1717612093914,6.5408,173.71,173.68,2.1303]
[1717612094212,0.34,173.72,173.67,2.1304]
[1717612094392,0.34,173.72,173.57,16.305]
[1717612094393,16.1707,173.72,173.66,2.1305]
[1717612094592,7.16,173.71,173.66,2.1305]
[1717612094910,6.5408,173.69,173.66,2.1305]
[1717612096002,6.5408,173.69,173.67,2.1304]
[1717612097111,6.5408,173.69,173.66,2.1305]
[1717612097311,6.5408,173.69,173.65,7.16]
[1717612097312,6.5408,173.69,173.65,9.2906]
[1717612097515,6.5408,173.69,173.66,2.1305]
[1717612097704,0.34,173.7,173.63,9.2908]
[1717612097705,0.17,173.68,173.63,9.2908]
[1717612097907,6.2181,173.67,173.63,9.2908]
[1717612098316,0.17,173.7,173.64,7.16]
[1717612098502,0.34,173.7,173.66,2.1305]
[1717612098724,8.9726,173.71,173.65,9.2906]
[1717612098892,16.1326,173.71,173.65,2.1306]
[1717612099299,9.2901,173.7,173.64,2.1307]
[1717612099498,16.3751,173.69,173.64,2.1307]
[1717612099715,6.5027,173.68,173.64,2.1307]
[1717612100016,6.5027,173.67,173.64,2.1307]
[1717612100401,6.5027,173.67,173.65,2.1307]
[1717612100601,6.5027,173.67,173.64,2.1308]
[1717612103130,6.5027,173.67,173.65,2.1307]
[1717612103315,16.3751,173.69,173.65,2.1307]
[1717612103506,22.8778,173.69,173.65,2.1307]
[1717612104723,22.110927,173.69,173.65,2.1307]
[1717612105507,6.4866,173.68,173.64,2.1308]
[1717612105702,8.617,173.68,173.62,2.131]
[1717612106014,15.777,173.68,173.62,9.291]
[1717612106325,8.617,173.68,173.62,2.131]
[1717612106525,8.617,173.68,173.63,2.1309]
[1717612106825,8.957,173.67,173.61,2.1311]
[1717612107026,6.4866,173.66,173.61,7.16]
[1717612107512,6.4866,173.66,173.61,9.2911]
[1717612107822,8.6172,173.66,173.61,2.1311]
[1717612108018,0.17,173.65,173.61,9.2911]
[1717612108609,0.17,173.65,173.62,2.131]
[1717612108815,0.17,173.65,173.61,2.1311]
[1717612109008,0.17,173.65,173.61,9.2911]
[1717612109225,0.17,173.65,173.61,7.16]
[1717612109522,0.34,173.65,173.62,2.131]
[1717612109830,0.17,173.65,173.62,9.291]
[1717612110029,0.17,173.65,173.62,2.131]
[1717612110732,0.34,173.65,173.61,9.2911]
[1717612111327,0.34,173.65,173.62,2.131]
[1717612112831,0.34,173.65,173.61,9.2911]
[1717612113034,0.34,173.65,173.62,7.16]
[1717612113338,0.34,173.65,173.61,2.1311]
[1717612113630,0.34,173.65,173.61,9.2911]
[1717612113933,0.34,173.65,173.62,2.131]
[1717612114306,0.34,173.65,173.61,9.2911]
[1717612115531,0.34,173.65,173.62,2.131]
[1717612115847,9.6308,173.65,173.59,2.1313]
[1717612116133,9.6308,173.65,173.58,7.16]
[1717612116134,2.1311,173.62,173.5,6.2712]
[1717612116314,2.1311,173.62,173.58,9.2915]
[1717612116315,6.0349,173.62,173.58,9.2915]
[1717612116735,0.17,173.61,173.58,2.1315]
[1717612116936,6.3749,173.61,173.58,2.1315]
[1717612117117,6.3749,173.61,173.57,9.2916]
[1717612118736,6.3749,173.61,173.58,2.1315]
[1717612119031,6.3749,173.61,173.57,9.2916]
[1717612119934,6.3749,173.61,173.58,2.1315]
[1717612120430,6.3749,173.61,173.5,6.2712]
[1717612120431,6.1818,173.6,173.56,2.1317]
[1717612120725,6.5218,173.59,173.56,2.1317]
[1717612120938,6.3518,173.59,173.56,2.1317]
[1717612121106,0.17,173.58,173.56,2.1317]
[1717612121530,6.3518,173.59,173.51,20.0]
[1717612121531,6.1818,173.59,173.57,2.1316]
[1717612121811,8.3963,173.63,173.57,9.2916]
[1717612122011,8.3963,173.63,173.57,7.16]
[1717612122012,6.2653,173.61,173.57,7.16]
[1717612122214,0.17,173.6,173.57,2.1316]
[1717612122629,6.9369,173.6,173.57,2.1316]
[1717612122841,0.34,173.6,173.57,2.1316]
[1717612124739,6.5371,173.61,173.57,9.2916]
[1717612125426,6.5371,173.61,173.58,2.1315]
[1717612125622,6.5371,173.61,173.57,9.2916]
[1717612126434,6.5371,173.61,173.58,2.1315]
[1717612126741,6.5371,173.61,173.58,9.2915]
[1717612127631,6.5371,173.61,173.58,7.16]
[1717612128541,6.5371,173.61,173.58,9.2915]
[1717612128740,0.34,173.61,173.58,7.16]
[1717612129035,2.1308,173.64,173.52,28.64]
[1717612129345,2.1307,173.65,173.61,7.16]
[1717612130041,2.1308,173.64,173.61,7.16]
[1717612130236,2.1306,173.66,173.62,7.16]
[1717612130538,2.1306,173.66,173.61,7.16]
[1717612130858,2.1307,173.65,173.61,7.16]
[1717612131246,2.1306,173.66,173.62,7.16]
[1717612131736,0.34,173.65,173.62,7.16]
[1717612131951,0.34,173.65,173.63,7.16]
[1717612132117,6.4248,173.68,173.63,9.2909]
[1717612132319,6.4248,173.68,173.65,7.16]
[1717612132757,6.4248,173.68,173.66,7.16]
[1717612133643,2.13,173.71,173.65,2.1306]
[1717612133957,2.13,173.71,173.66,2.1305]
[1717612134121,15.8504,173.73,173.66,7.16]
[1717612134122,6.368,173.7,173.66,7.16]
[1717612134627,8.4981,173.7,173.66,7.16]
[1717612134828,8.4981,173.7,173.65,7.16]
[1717612135045,0.17,173.69,173.65,7.16]
[1717612135342,0.17,173.69,173.66,7.16]
[1717612136047,0.17,173.69,173.67,7.16]
[1717612136645,0.17,173.69,173.64,2.1307]
[1717612136844,0.17,173.69,173.67,7.16]
[1717612137044,0.17,173.69,173.66,7.16]
[1717612138147,2.3002,173.69,173.66,7.16]
[1717612138327,8.4981,173.7,173.66,7.16]
[1717612138647,388.6,173.9,173.61,28.64]
[1717612138648,6.2349,173.74,173.69,7.16]
[1717612138845,6.2349,173.74,173.71,7.16]
[1717612139038,18.2241,173.77,173.71,9.2899]
[1717612139253,2.1294,173.76,173.72,7.16]
[1717612139829,2.1295,173.75,173.72,7.16]
[1717612140253,2.1296,173.74,173.71,7.16]
[1717612140428,2.1295,173.75,173.71,7.16]
[1717612140858,2.1294,173.76,173.71,7.16]
[1717612141044,2.1295,173.75,173.71,7.16]
[1717612141248,2.1294,173.76,173.72,7.16]
[1717612141445,2.1294,173.76,173.73,7.16]
[1717612142566,0.34,173.77,173.73,7.16]
[1717612142850,2.1296,173.74,173.68,2.1302]
[1717612143023,0.34,173.73,173.62,25.75]
[1717612143230,0.34,173.73,173.65,2.1306]
[1717612143533,2.1301,173.7,173.65,7.16]
[1717612143728,0.34,173.69,173.65,7.16]
[1717612145153,0.34,173.69,173.66,7.16]
[1717612146655,0.34,173.7,173.66,9.2905]
[1717612146854,0.34,173.7,173.66,7.16]
[1717612147056,2.4701,173.7,173.66,7.16]
[1717612147352,2.1302,173.69,173.64,2.1307]
[1717612147555,2.4703,173.68,173.63,9.2909]
[1717612147860,2.1304,173.67,173.62,9.291]
[1717612148045,13.8097,173.68,173.56,6.3104]
[1717612148046,0.34,173.66,173.59,2.1313]
[1717612148353,8.7805,173.65,173.6,9.2913]
[1717612148535,6.6497,173.65,173.6,9.2913]
[1717612148737,6.6497,173.65,173.61,2.1311]
[1717612148938,6.6497,173.65,173.6,9.2913]
[1717612149357,6.6497,173.65,173.61,2.1312]
[1717612149755,6.6497,173.65,173.61,9.2912]
[1717612150637,6.6497,173.65,173.61,7.16]
[1717612150845,8.7804,173.65,173.59,2.1314]
[1717612151055,8.7804,173.65,173.59,9.2914]
[1717612151460,0.34,173.65,173.58,2.1315]
[1717612151653,0.17,173.64,173.58,9.2915]
[1717612151852,45.34,173.66,173.58,9.2915]
[1717612152051,2.1308,173.64,173.58,9.2915]
[1717612152267,0.34,173.63,173.58,9.2915]
[1717612152953,0.34,173.63,173.59,9.2914]
[1717612153464,0.34,173.63,173.58,9.2915]
[1717612153666,0.34,173.63,173.59,7.16]
[1717612155568,2.4709,173.63,173.59,7.16]
[1717612156268,2.1311,173.62,173.56,2.1317]
[1717612156565,0.34,173.61,173.57,7.16]
[1717612156765,0.34,173.61,173.57,9.2916]
[1717612157668,0.34,173.62,173.57,9.2916]
[1717612158173,6.3475,173.62,173.57,2.1316]
[1717612158340,6.3475,173.62,173.57,9.2916]
[1717612159475,6.3475,173.62,173.57,2.1316]
[1717612160273,8.4786,173.62,173.57,2.1316]
[1717612160465,6.3475,173.62,173.57,2.1316]
[1717612162068,5.8475,173.62,173.57,2.1316]
[1717612162265,0.34,173.61,173.58,2.1315]
[1717612162454,0.34,173.61,173.57,9.2916]
[1717612162654,0.34,173.61,173.57,7.16]
[1717612162853,0.34,173.61,173.57,9.2917]
[1717612165176,0.34,173.61,173.57,2.1317]
[1717612165362,0.34,173.61,173.58,9.2915]
[1717612165684,0.17,173.6,173.58,2.1315]
[1717612165977,0.17,173.6,173.57,9.2916]
[1717612166159,0.34,173.62,173.58,2.1315]
[1717612167288,2.471,173.62,173.57,9.2916]
[1717612167857,0.34,173.62,173.58,2.1315]
[1717612168165,2.471,173.62,173.57,9.2916]
[1717612168572,0.34,173.62,173.57,9.2916]
[1717612170473,0.34,173.62,173.58,2.1315]
[1717612171351,2.4711,173.62,173.57,2.1316]
[1717612171655,2.4711,173.62,173.58,7.16]
[1717612171860,2.4711,173.62,173.57,9.2916]
[1717612172468,2.1312,173.61,173.56,2.1317]
[1717612172665,2.1312,173.61,173.57,7.16]
[1717612173477,2.4711,173.62,173.57,9.2916]
[1717612175378,8.7597,173.62,173.57,2.1316]
[1717612176177,8.2018,173.61,173.52,20.0]
[1717612176485,8.2018,173.61,173.55,7.16]
[1717612176486,0.34,173.6,173.55,7.16]
[1717612176780,0.34,173.6,173.55,9.2918]
[1717612176982,0.34,173.6,173.56,2.1318]
[1717612178080,0.34,173.6,173.57,2.1316]
[1717612195190,13.6739,173.6,173.52,20.0]
[1717612195491,9.2914,173.59,173.53,2.1321]
[1717612195670,0.34,173.58,173.53,2.1321]
[1717612195870,6.4312,173.58,173.53,2.1321]
[1717612196308,6.4312,173.58,173.54,2.132]
[1717612197284,6.4312,173.58,173.53,2.1321]
[1717612197495,6.4312,173.58,173.54,2.132]
[1717612198370,6.4312,173.58,173.53,2.1321]
[1717612198690,6.4312,173.58,173.53,9.2921]
[1717612199190,6.4312,173.58,173.54,2.132]
[1717612201398,6.4312,173.58,173.53,2.1321]
[1717612201603,8.5628,173.58,173.53,2.1321]
[1717612202077,6.4312,173.58,173.53,2.1321]
[1717612202979,6.4312,173.58,173.54,2.132]
[1717612205299,6.4312,173.58,173.48,20.0]
[1717612205596,6.4312,173.58,173.53,7.16]
[1717612206198,15.7228,173.58,173.48,20.0]
[1717612206498,15.7228,173.58,173.52,7.16]
[1717612207696,13.5912,173.58,173.48,20.0]
[1717612207997,15.7227,173.58,173.52,7.16]
[1717612208393,13.5912,173.58,173.52,7.16]
[1717612208695,13.5912,173.58,173.48,20.0]
[1717612208900,13.5912,173.58,173.52,7.16]
[1717612210397,6.4312,173.58,173.52,7.16]
[1717612210604,6.4312,173.58,173.53,7.16]
[1717612211191,6.4312,173.58,173.48,20.0]
[1717612211505,7.5,173.58,173.51,7.16]
[1717612211693,6.8359,173.58,173.53,7.16]
[1717612212079,8.9674,173.58,173.49,45.0]
[1717612212281,6.8359,173.58,173.53,7.16]
[1717612213014,6.8359,173.58,173.5,20.0]
[1717612213015,8.9675,173.58,173.5,20.0]
[1717612213203,6.8359,173.58,173.53,7.16]
[1717612213718,6.8359,173.58,173.54,7.16]
[1717612214080,6.8359,173.58,173.53,7.16]
[1717612217109,6.2483,173.57,173.53,7.16]
[1717612220707,0.34,173.58,173.53,7.16]
[1717612220942,0.34,173.59,173.54,7.16]
[1717612221082,0.34,173.59,173.55,7.16]
[1717612221288,6.3768,173.59,173.55,7.16]
[1717612221592,6.0368,173.58,173.55,7.16]
[1717612222104,6.0368,173.58,173.54,7.16]
[1717612225234,6.0368,173.58,173.55,7.16]
[1717612225602,0.34,173.59,173.55,7.16]
[1717612226501,6.621,173.59,173.55,7.16]
[1717612228212,8.7524,173.59,173.55,7.16]
[1717612229627,8.7524,173.59,173.54,7.16]
[1717612230031,6.621,173.59,173.55,7.16]
[1717612230234,2.1312,173.61,173.52,7.16]
[1717612230526,8.6145,173.62,173.58,7.16]
[1717612230930,2.1311,173.62,173.58,7.16]
[1717612231114,2.1309,173.64,173.59,7.16]
[1717612231323,8.6143,173.64,173.59,7.16]
[1717612231710,2.1309,173.63,173.59,7.16]
[1717612231921,2.1309,173.63,173.6,7.16]
[1717612232410,8.6142,173.64,173.6,7.16]
[1717612232620,2.1307,173.65,173.61,7.16]
[1717612232824,2.1306,173.66,173.53,67.2606]
[1717612233026,2.1305,173.67,173.63,7.16]
[1717612233220,6.0514,173.68,173.64,7.16]
[1717612233441,6.0514,173.68,173.65,7.16]
[1717612233631,2.1302,173.69,173.65,7.16]
[1717612234126,2.1302,173.69,173.61,7.16]
[1717612234127,2.1302,173.69,173.66,7.16]
[1717612234335,2.1301,173.7,173.66,7.16]
[1717612234541,2.13,173.71,173.67,7.16]
[1717612234842,4.2594,173.73,173.67,7.16]
[1717612235436,2.1298,173.72,173.67,7.16]
[1717612236339,2.1298,173.72,173.69,7.16]
[1717612237234,10.8845,173.75,173.69,7.16]
[1717612237235,2.1297,173.73,173.69,7.16]
[1717612238220,6.6254,173.75,173.61,28.64]
[1717612238420,6.6254,173.75,173.71,7.16]
[1717612238421,8.755,173.75,173.71,7.16]
[1717612238630,8.755,173.75,173.72,7.16]
[1717612239425,2.1292,173.77,173.74,7.16]
[1717612239627,10.8833,173.8,173.75,7.16]
[1717612239827,2.1292,173.78,173.75,7.16]
[1717612240435,2.129,173.79,173.75,7.16]
[1717612240835,2.1291,173.78,173.75,7.16]
[1717612241144,2.1292,173.77,173.75,7.16]
[1717612241355,2.1292,173.77,173.74,7.16]
[1717612241724,2.1291,173.78,173.74,7.16]
[1717612242739,2.1292,173.77,173.74,7.16]
[1717612242946,2.1292,173.77,173.73,7.16]
[1717612243145,2.1293,173.77,173.66,22.6035]
[1717612243329,2.4693,173.76,173.71,7.16]
[1717612244445,2.1291,173.78,173.72,7.16]
[1717612244648,2.2991,173.78,173.73,7.16]
[1717612245347,2.299,173.79,173.66,6.0061]
[1717612245638,2.299,173.79,173.75,7.16]
[1717612248022,4.2576,173.81,173.75,7.16]
[1717612248246,12.37321779,173.82,173.7,7.16]
[1717612248247,2.1289,173.8,173.76,7.16]
[1717612249533,2.1289,173.8,173.77,7.16]
[1717612250330,2.1287,173.82,173.68,15.8647]
[1717612250542,2.1287,173.82,173.78,7.16]
[1717612250868,2.1287,173.82,173.7,28.64]
[1717612251152,2.1287,173.82,173.71,65.0]
[1717612251153,2.1287,173.81,173.71,65.0]
[1717612251346,13.5459,173.82,173.71,65.0]
[1717612251534,2.129,173.79,173.74,7.16]
[1717612251929,2.1291,173.78,173.74,7.16]
[1717612252136,2.1291,173.79,173.73,7.16]
[1717612252544,2.1291,173.79,173.74,7.16]
[1717612253156,2.2989,173.8,173.74,7.16]
[1717612254047,0.17,173.79,173.71,65.0]
[1717612254749,2.2988,173.81,173.71,65.0]
[1717612255152,0.17,173.8,173.71,65.0]
[1717612255349,2.2988,173.8,173.71,65.0]
[1717612255534,2.129,173.79,173.71,65.0]
[1717612255736,0.17,173.78,173.71,20.0]
[1717612256052,2.1292,173.77,173.71,7.16]
[1717612256658,2.4691,173.78,173.72,7.16]
[1717612257237,8.7232,173.78,173.73,7.16]
[1717612257443,8.7232,173.78,173.72,7.16]
[1717612258481,2.1292,173.77,173.67,20.0]
[1717612258665,9.6294,173.76,173.7,7.16]
[1717612258846,0.34,173.76,173.7,7.16]
[1717612259162,0.34,173.76,173.71,7.16]
[1717612259363,0.34,173.77,173.71,7.16]
[1717612259563,2.4692,173.77,173.71,7.16]
[1717612260250,0.34,173.77,173.71,7.16]
[1717612260858,2.4692,173.77,173.71,7.16]
[1717612261163,2.1295,173.75,173.67,20.0]
[1717612261353,0.17,173.74,173.69,7.16]
[1717612261547,2.2996,173.74,173.64,20.0]
[1717612261747,2.2996,173.74,173.68,7.16]
[1717612262344,0.17,173.74,173.68,7.16]
[1717612262970,0.17,173.74,173.69,7.16]
[1717612263173,2.2996,173.74,173.65,45.0]
[1717612263365,2.2996,173.74,173.69,7.16]
[1717612263565,6.3359,173.74,173.69,7.16]
[1717612264253,6.3359,173.74,173.7,7.16]